[Event "MČR juniorů a juniorek v rapid šachu 2024"]
[Site "Hotel Fit Fun, Harrachov, Czech Republic"]
[Date "2024.09.22"]
[Round "7.12"]
[White "Sulcova Tereza Radmila"]
[Black "Stejskal Michal"]
[Result "1/2-1/2"]
[TimeControl "20+5"]
[WhiteFideId "395196"]
[BlackFideId "398195"]
[WhiteElo "1800"]
[BlackElo "1926"]

1. b3 {[%clk 00:20:08]} {[%emt 00:00:02]} e5 {[%clk 00:20:06]} {[%emt
00:00:05]} 2. Bb2 {[%clk 00:20:11]} {[%emt 00:00:02]} Nc6 {[%clk 00:20:09]}
{[%emt 00:00:02]} 3. e3 {[%clk 00:20:13]} {[%emt 00:00:02]} d5 {[%clk
00:20:12]} {[%emt 00:00:02]} 4. Bb5 {[%clk 00:20:13]} {[%emt 00:00:06]} Bd6
{[%clk 00:20:15]} {[%emt 00:00:02]} 5. Nf3 {[%clk 00:20:05]} {[%emt 00:00:13]}
f6 {[%clk 00:19:56]} {[%emt 00:00:24]} 6. c4 {[%clk 00:19:56]} {[%emt
00:00:13]} Nge7 {[%clk 00:19:53]} {[%emt 00:00:08]} 7. Qc2 {[%clk 00:19:45]}
{[%emt 00:00:16]} O-O {[%clk 00:19:46]} {[%emt 00:00:12]} 8. c5 {[%clk
00:19:36]} {[%emt 00:00:15]} e4 {[%clk 00:17:45]} {[%emt 00:02:05]} 9. cxd6
{[%clk 00:19:15]} {[%emt 00:00:26]} Qxd6 {[%clk 00:17:49]} {[%emt 00:00:01]} 10.
Nd4 {[%clk 00:18:02]} {[%emt 00:01:18]} Ne5 {[%clk 00:17:52]} {[%emt 00:00:03]}
11. Ba3 {[%clk 00:16:02]} {[%emt 00:02:05]} Qd8 {[%clk 00:17:54]} {[%emt
00:00:03]} 12. Nc3 {[%clk 00:15:55]} {[%emt 00:00:12]} a6 {[%clk 00:17:08]}
{[%emt 00:00:51]} 13. Be2 {[%clk 00:15:10]} {[%emt 00:00:49]} Rf7 {[%clk
00:16:19]} {[%emt 00:00:55]} 14. d3 {[%clk 00:14:15]} {[%emt 00:01:00]} f5
{[%clk 00:16:21]} {[%emt 00:00:03]} 15. f3 {[%clk 00:12:08]} {[%emt 00:02:11]}
N7g6 {[%clk 00:15:49]} {[%emt 00:00:37]} 16. dxe4 {[%clk 00:11:49]} {[%emt
00:00:24]} fxe4 {[%clk 00:15:52]} {[%emt 00:00:02]} 17. fxe4 {[%clk 00:11:40]}
{[%emt 00:00:14]} Qg5 {[%clk 00:15:08]} {[%emt 00:00:50]} 18. Nxd5 {[%clk
00:10:55]} {[%emt 00:00:50]} Qxg2 {[%clk 00:11:37]} {[%emt 00:03:35]} 19. O-O-O
{[%clk 00:10:38]} {[%emt 00:00:23]} Qg5 {[%clk 00:11:03]} {[%emt 00:00:39]} 20.
Rhg1 {[%clk 00:09:48]} {[%emt 00:00:54]} Qh6 {[%clk 00:11:03]} {[%emt
00:00:06]} 21. Nf5 {[%clk 00:09:20]} {[%emt 00:00:33]} Bxf5 {[%clk 00:10:14]}
{[%emt 00:00:54]} 22. exf5 {[%clk 00:09:24]} {[%emt 00:00:01]} Nh4 {[%clk
00:10:17]} 23. Ne7+ {[%clk 00:07:33]} {[%emt 00:01:55]} Kh8 {[%clk 00:09:53]}
{[%emt 00:00:30]} 24. Qe4 {[%clk 00:07:26]} {[%emt 00:00:12]} Qf6 {[%clk
00:09:02]} {[%emt 00:00:56]} 25. Nd5 {[%clk 00:06:34]} {[%emt 00:00:57]} Qc6+
{[%clk 00:07:13]} {[%emt 00:01:55]} 26. Kb1 {[%clk 00:06:36]} {[%emt 00:00:03]}
Nxf5 {[%clk 00:07:06]} {[%emt 00:00:12]} 27. Qxe5 {[%clk 00:06:25]} {[%emt
00:00:16]} Re8 {[%clk 00:07:09]} {[%emt 00:00:01]} 28. Qc3 {[%clk 00:06:22]}
{[%emt 00:00:08]} Qxc3 {[%clk 00:06:46]} {[%emt 00:00:28]} 29. Nxc3 {[%clk
00:06:26]} {[%emt 00:00:02]} Nxe3 {[%clk 00:06:50]} 30. Rd3 {[%clk 00:05:34]}
{[%emt 00:00:57]} c6 {[%clk 00:06:07]} {[%emt 00:00:48]} 31. Bh5 {[%clk
00:05:17]} {[%emt 00:00:22]} g6 {[%clk 00:06:08]} {[%emt 00:00:04]} 32. Bd1
{[%clk 00:05:03]} {[%emt 00:00:19]} Nf5 {[%clk 00:05:07]} {[%emt 00:01:06]} 33.
Na4 {[%clk 00:04:24]} {[%emt 00:00:44]} b5 {[%clk 00:04:54]} {[%emt 00:00:17]}
34. Nc5 {[%clk 00:04:20]} {[%emt 00:00:09]} a5 {[%clk 00:04:58]} {[%emt
00:00:02]} 35. Bb2+ {[%clk 00:03:40]} {[%emt 00:00:45]} Kg8 {[%clk 00:05:01]}
{[%emt 00:00:01]} 36. Rd7 {[%clk 00:03:36]} {[%emt 00:00:10]} Rxd7 {[%clk
00:05:04]} {[%emt 00:00:02]} 37. Nxd7 {[%clk 00:03:40]} {[%emt 00:00:01]} Kf7
{[%clk 00:05:07]} {[%emt 00:00:01]} 38. Bf3 {[%clk 00:03:33]} {[%emt 00:00:12]}
Rd8 {[%clk 00:04:52]} {[%emt 00:00:21]} 39. Ne5+ {[%clk 00:03:31]} {[%emt
00:00:07]} Ke6 {[%clk 00:04:55]} {[%emt 00:00:02]} 40. Nxc6 {[%clk 00:03:20]}
{[%emt 00:00:15]} Rd2 {[%clk 00:04:46]} {[%emt 00:00:14]} 41. Re1+ {[%clk
00:03:11]} {[%emt 00:00:15]} Kf7 {[%clk 00:04:36]} {[%emt 00:00:15]} 42. Ne5+
{[%clk 00:03:08]} {[%emt 00:00:07]} Kf8 {[%clk 00:04:24]} {[%emt 00:00:18]} 43.
Ng4 {[%clk 00:02:42]} {[%emt 00:00:31]} h5 {[%clk 00:03:36]} {[%emt 00:00:53]}
44. Ne5 {[%clk 00:02:44]} {[%emt 00:00:02]} Nh4 {[%clk 00:03:11]} {[%emt
00:00:30]} 45. Rf1 {[%clk 00:02:18]} {[%emt 00:00:31]} Nxf3 {[%clk 00:03:14]}
{[%emt 00:00:02]} 46. Rxf3+ {[%clk 00:02:21]} {[%emt 00:00:02]} Ke8 {[%clk
00:03:18]} {[%emt 00:00:01]} 47. Nxg6 {[%clk 00:01:55]} {[%emt 00:00:31]} Rxh2
{[%clk 00:03:21]} {[%emt 00:00:03]} 48. Rf5 {[%clk 00:01:49]} {[%emt 00:00:10]}
h4 {[%clk 00:03:13]} {[%emt 00:00:13]} 49. Rxb5 {[%clk 00:01:42]} {[%emt
00:00:13]} h3 {[%clk 00:03:16]} 50. Be5 {[%clk 00:01:33]} {[%emt 00:00:14]}
Rh1+ {[%clk 00:03:20]} {[%emt 00:00:02]} 51. Kb2 {[%clk 00:01:37]} {[%emt
00:00:01]} h2 {[%clk 00:03:23]} {[%emt 00:00:02]} 52. Bxh2 {[%clk 00:01:36]}
{[%emt 00:00:06]} Rxh2+ {[%clk 00:03:26]} {[%emt 00:00:02]} 53. Ka3 {[%clk
00:01:36]} {[%emt 00:00:04]} a4 {[%clk 00:03:25]} {[%emt 00:00:07]} 54. bxa4
{[%clk 00:01:25]} {[%emt 00:00:17]} Kd7 {[%clk 00:03:27]} {[%emt 00:00:03]} 55.
a5 {[%clk 00:01:24]} {[%emt 00:00:06]} Kc7 {[%clk 00:03:20]} {[%emt 00:00:12]}
56. Ne5 {[%clk 00:01:03]} {[%emt 00:00:26]} Rh6 {[%clk 00:03:23]} {[%emt
00:00:02]} 57. Kb4 {[%clk 00:01:03]} {[%emt 00:00:05]} Rh4+ {[%clk 00:03:26]}
{[%emt 00:00:02]} 58. Kb3 {[%clk 00:01:05]} {[%emt 00:00:03]} Rh6 {[%clk
00:03:29]} {[%emt 00:00:01]} 59. a4 {[%clk 00:01:06]} {[%emt 00:00:05]} Rf6
{[%clk 00:03:28]} {[%emt 00:00:05]} 60. Kb4 {[%clk 00:01:07]} {[%emt 00:00:04]}
Rf4+ {[%clk 00:03:32]} {[%emt 00:00:01]} 61. Kc5 {[%clk 00:01:10]} {[%emt
00:00:03]} Rxa4 {[%clk 00:03:35]} {[%emt 00:00:02]} 62. Nd3 {[%clk 00:00:55]}
{[%emt 00:00:20]} Ra3 {[%clk 00:03:33]} {[%emt 00:00:07]} 63. Nb4 {[%clk
00:00:56]} {[%emt 00:00:04]} Rc3+ {[%clk 00:03:34]} {[%emt 00:00:03]} 64. Kd4
{[%clk 00:00:59]} {[%emt 00:00:02]} Rh3 {[%clk 00:03:37]} {[%emt 00:00:01]} 65.
Nd5+ {[%clk 00:00:56]} {[%emt 00:00:09]} Kc8 {[%clk 00:03:36]} {[%emt
00:00:06]} 66. Kc5 {[%clk 00:00:58]} {[%emt 00:00:03]} Rh6 {[%clk 00:03:38]}
{[%emt 00:00:04]} 67. Rb6 {[%clk 00:00:47]} {[%emt 00:00:17]} Rh7 {[%clk
00:03:40]} {[%emt 00:00:03]} 68. a6 {[%clk 00:00:46]} {[%emt 00:00:06]} Ra7
{[%clk 00:03:44]} {[%emt 00:00:01]} 69. Nb4 {[%clk 00:00:46]} {[%emt 00:00:05]}
Kc7 {[%clk 00:03:24]} {[%emt 00:00:25]} 70. Nc6 {[%clk 00:00:39]} {[%emt
00:00:12]} Ra8 {[%clk 00:03:27]} {[%emt 00:00:01]} 71. Rb7+ {[%clk 00:00:42]}
{[%emt 00:00:02]} Kc8 {[%clk 00:03:30]} {[%emt 00:00:03]} 72. Kb6 {[%clk
00:00:45]} {[%emt 00:00:02]} Rxa6+ {[%clk 00:03:29]} {[%emt 00:00:05]} 73. Kb5
{[%clk 00:00:41]} {[%emt 00:00:09]} Kxb7 {[%clk 00:03:25]} {[%emt 00:00:09]} 74.
Nd8+ {[%clk 00:00:45]} Ka7 {[%clk 00:03:25]} {[%emt 00:00:05]} 75. Nc6+ {[%clk
00:00:49]} {[%emt 00:00:01]} 1/2-1/2



[ePGN "0.1;DGT LiveChess/2.2.6"]

[Event "MČR juniorů a juniorek v rapid šachu 2024"]
[Site "Hotel Fit Fun, Harrachov, Czech Republic"]
[Date "2024.09.22"]
[Round "7.13"]
[White "Nagyova Daniela"]
[Black "Siles Jan"]
[Result "1-0"]
[TimeControl "20+5"]
[WhiteFideId "390070"]
[BlackFideId "23715405"]
[WhiteElo "1787"]
[BlackElo "1873"]

1. e4 {[%clk 00:20:07]} {[%emt 00:00:02]} d5 {[%clk 00:20:09]} {[%emt
00:00:02]} 2. exd5 {[%clk 00:20:08]} {[%emt 00:00:04]} Qxd5 {[%clk 00:20:11]}
{[%emt 00:00:01]} 3. Nc3 {[%clk 00:20:09]} {[%emt 00:00:04]} Qd6 {[%clk
00:20:15]} {[%emt 00:00:02]} 4. Nf3 {[%clk 00:19:43]} {[%emt 00:00:31]} c6
{[%clk 00:20:05]} {[%emt 00:00:15]} 5. d4 {[%clk 00:19:24]} {[%emt 00:00:24]}
Bg4 {[%clk 00:20:02]} {[%emt 00:00:08]} 6. Be2 {[%clk 00:18:58]} {[%emt
00:00:31]} Nf6 {[%clk 00:19:48]} {[%emt 00:00:19]} 7. Bg5 {[%clk 00:18:05]}
{[%emt 00:00:57]} Nbd7 {[%clk 00:19:26]} {[%emt 00:00:28]} 8. Qd2 {[%clk
00:17:14]} {[%emt 00:00:57]} e6 {[%clk 00:18:42]} {[%emt 00:00:47]} 9. O-O-O
{[%clk 00:16:15]} {[%emt 00:01:05]} Qc7 {[%clk 00:18:30]} {[%emt 00:00:17]} 10.
h3 {[%clk 00:14:53]} {[%emt 00:01:27]} Bh5 {[%clk 00:18:00]} {[%emt 00:00:35]}
11. g4 {[%clk 00:13:29]} {[%emt 00:01:29]} Bg6 {[%clk 00:17:57]} {[%emt
00:00:07]} 12. Ne5 {[%clk 00:12:45]} {[%emt 00:00:49]} O-O-O {[%clk 00:16:09]}
{[%emt 00:01:54]} 13. Qe3 {[%clk 00:11:12]} {[%emt 00:01:38]} Nb6 {[%clk
00:14:56]} {[%emt 00:01:18]} 14. Bf3 {[%clk 00:09:39]} {[%emt 00:01:37]} Bd6
{[%clk 00:10:36]} {[%emt 00:04:25]} 15. Kb1 {[%clk 00:08:55]} {[%emt 00:00:50]}
a6 {[%clk 00:07:04]} {[%emt 00:03:38]} 16. Rhe1 {[%clk 00:07:37]} {[%emt
00:01:22]} Be7 {[%clk 00:05:29]} {[%emt 00:01:40]} 17. Bf4 {[%clk 00:05:40]}
{[%emt 00:02:01]} Bd6 {[%clk 00:05:33]} {[%emt 00:00:02]} 18. h4 {[%clk
00:04:33]} {[%emt 00:01:12]} Nfd5 {[%clk 00:04:38]} {[%emt 00:00:59]} 19. Nxd5
{[%clk 00:04:22]} {[%emt 00:00:16]} cxd5 {[%clk 00:03:56]} {[%emt 00:00:47]} 20.
Qe2 {[%clk 00:02:29]} {[%emt 00:01:58]} Na4 {[%clk 00:01:22]} {[%emt 00:02:39]}
21. Bc1 {[%clk 00:01:18]} {[%emt 00:01:15]} Qb6 {[%clk 00:00:56]} {[%emt
00:00:32]} 22. Ka1 {[%clk 00:01:12]} {[%emt 00:00:11]} Bxe5 {[%clk 00:00:27]}
{[%emt 00:00:34]} 23. dxe5 {[%clk 00:01:16]} {[%emt 00:00:01]} h6 {[%clk
00:00:16]} {[%emt 00:00:17]} 24. h5 {[%clk 00:01:06]} {[%emt 00:00:14]} Bh7
{[%clk 00:00:20]} {[%emt 00:00:01]} 25. Qd2 {[%clk 00:00:39]} {[%emt 00:00:33]}
Kb8 {[%clk 00:00:20]} {[%emt 00:00:04]} 26. Re3 {[%clk 00:00:29]} {[%emt
00:00:15]} Rc8 {[%clk 00:00:19]} {[%emt 00:00:06]} 27. Rb3 {[%clk 00:00:25]}
{[%emt 00:00:09]} Qc7 {[%clk 00:00:15]} {[%emt 00:00:09]} 28. c3 {[%clk
00:00:21]} {[%emt 00:00:09]} Nc5 {[%clk 00:00:19]} {[%emt 00:00:01]} 29. Rb4
{[%clk 00:00:20]} {[%emt 00:00:07]} Rhd8 {[%clk 00:00:14]} {[%emt 00:00:11]} 30.
Qd4 {[%clk 00:00:16]} {[%emt 00:00:09]} a5 {[%clk 00:00:11]} {[%emt 00:00:08]}
31. Rb5 {[%clk 00:00:15]} {[%emt 00:00:05]} b6 {[%clk 00:00:15]} 32. Be3 {[%clk
00:00:16]} {[%emt 00:00:04]} Qc6 {[%clk 00:00:15]} {[%emt 00:00:06]} 33. Be2
{[%clk 00:00:16]} {[%emt 00:00:05]} Kc7 {[%clk 00:00:14]} {[%emt 00:00:06]} 34.
b4 {[%clk 00:00:13]} {[%emt 00:00:07]} Na4 {[%clk 00:00:10]} {[%emt 00:00:09]}
35. bxa5 {[%clk 00:00:10]} {[%emt 00:00:08]} Rb8 {[%clk 00:00:10]} {[%emt
00:00:05]} 36. axb6+ {[%clk 00:00:10]} {[%emt 00:00:05]} Nxb6 {[%clk 00:00:12]}
{[%emt 00:00:03]} 37. Rc5 {[%clk 00:00:14]} {[%emt 00:00:01]} Kb7 {[%clk
00:00:09]} {[%emt 00:00:08]} 38. Rxc6 {[%clk 00:00:18]} {[%emt 00:00:02]} Kxc6
{[%clk 00:00:13]} {[%emt 00:00:01]} 39. Ba6 {[%clk 00:00:17]} {[%emt 00:00:05]}
Kd7 {[%clk 00:00:13]} {[%emt 00:00:05]} 40. Bb5+ {[%clk 00:00:15]} {[%emt
00:00:08]} Kc7 {[%clk 00:00:12]} {[%emt 00:00:06]} 41. Qc5+ {[%clk 00:00:18]}
{[%emt 00:00:01]} 1-0



[ePGN "0.1;DGT LiveChess/2.2.6"]

[Event "MČR juniorů a juniorek v rapid šachu 2024"]
[Site "Hotel Fit Fun, Harrachov, Czech Republic"]
[Date "2024.09.22"]
[Round "7.14"]
[White "Hosova Sandra"]
[Black "Sadil Antonin"]
[Result "0-1"]
[TimeControl "20+5"]
[WhiteFideId "397717"]
[BlackFideId "23735597"]
[WhiteElo "1847"]
[BlackElo "1784"]

1. d4 {[%clk 00:20:09]} Nf6 {[%clk 00:19:21]} {[%emt 00:00:49]} 2. Nf3 {[%clk
00:20:08]} {[%emt 00:00:05]} g6 {[%clk 00:19:25]} {[%emt 00:00:02]} 3. Bf4
{[%clk 00:19:57]} {[%emt 00:00:16]} Bg7 {[%clk 00:19:15]} {[%emt 00:00:15]} 4.
Nc3 {[%clk 00:19:44]} {[%emt 00:00:18]} d5 {[%clk 00:18:15]} {[%emt 00:01:04]}
5. Ne5 {[%clk 00:18:46]} {[%emt 00:01:04]} c6 {[%clk 00:17:35]} {[%emt
00:00:45]} 6. f3 {[%clk 00:18:13]} {[%emt 00:00:37]} Nbd7 {[%clk 00:16:46]}
{[%emt 00:00:55]} 7. Qd2 {[%clk 00:17:58]} {[%emt 00:00:20]} O-O {[%clk
00:16:10]} {[%emt 00:00:41]} 8. g4 {[%clk 00:16:42]} {[%emt 00:01:21]} Nxe5
{[%clk 00:15:12]} {[%emt 00:01:03]} 9. dxe5 {[%clk 00:16:11]} {[%emt 00:00:36]}
Nd7 {[%clk 00:15:10]} {[%emt 00:00:08]} 10. h4 {[%clk 00:11:57]} {[%emt
00:04:19]} Nxe5 {[%clk 00:14:40]} {[%emt 00:00:34]} 11. O-O-O {[%clk 00:10:13]}
{[%emt 00:01:49]} Nc4 {[%clk 00:14:21]} {[%emt 00:00:24]} 12. Qd3 {[%clk
00:09:49]} {[%emt 00:00:29]} Qb6 {[%clk 00:13:30]} {[%emt 00:00:55]} 13. b3
{[%clk 00:09:17]} {[%emt 00:00:38]} Qb4 {[%clk 00:11:47]} {[%emt 00:01:49]} 14.
Na4 {[%clk 00:07:33]} {[%emt 00:01:49]} b5 {[%clk 00:09:47]} {[%emt 00:02:04]}
15. bxc4 {[%clk 00:06:02]} {[%emt 00:01:37]} bxa4 {[%clk 00:09:51]} 16. a3
{[%clk 00:04:11]} {[%emt 00:01:56]} Bb2+ {[%clk 00:09:52]} {[%emt 00:00:04]} 17.
Kb1 {[%clk 00:04:14]} Bxa3+ {[%clk 00:09:55]} {[%emt 00:00:03]} 0-1



[ePGN "0.1;DGT LiveChess/2.2.6"]

[Event "MČR juniorů a juniorek v rapid šachu 2024"]
[Site "Hotel Fit Fun, Harrachov, Czech Republic"]
[Date "2024.09.22"]
[Round "7.15"]
[White "Housa Vojtech"]
[Black "Martinkovic Adam"]
[Result "1-0"]
[TimeControl "20+5"]
[WhiteFideId "23736364"]
[BlackFideId "23728019"]
[WhiteElo "1691"]
[BlackElo "1841"]

1. e4 {[%clk 00:20:07]} {[%emt 00:00:02]} c6 {[%clk 00:20:09]} {[%emt
00:00:02]} 2. d4 {[%clk 00:20:11]} d5 {[%clk 00:20:13]} 3. exd5 {[%clk
00:20:15]} {[%emt 00:00:02]} cxd5 {[%clk 00:20:17]} {[%emt 00:00:02]} 4. Bd3
{[%clk 00:20:19]} Nf6 {[%clk 00:20:19]} {[%emt 00:00:03]} 5. Nf3 {[%clk
00:20:21]} {[%emt 00:00:03]} Bg4 {[%clk 00:20:15]} {[%emt 00:00:08]} 6. h3
{[%clk 00:20:24]} {[%emt 00:00:02]} Bh5 {[%clk 00:20:18]} {[%emt 00:00:01]} 7.
c3 {[%clk 00:20:20]} {[%emt 00:00:10]} Nc6 {[%clk 00:20:18]} {[%emt 00:00:05]}
8. O-O {[%clk 00:19:59]} {[%emt 00:00:26]} e6 {[%clk 00:20:10]} {[%emt
00:00:13]} 9. Bg5 {[%clk 00:19:31]} {[%emt 00:00:33]} Be7 {[%clk 00:20:06]}
{[%emt 00:00:09]} 10. Nbd2 {[%clk 00:19:21]} {[%emt 00:00:15]} a6 {[%clk
00:19:53]} {[%emt 00:00:18]} 11. a4 {[%clk 00:19:10]} {[%emt 00:00:17]} Bg6
{[%clk 00:19:20]} {[%emt 00:00:37]} 12. Bxg6 {[%clk 00:18:53]} {[%emt
00:00:22]} hxg6 {[%clk 00:19:23]} {[%emt 00:00:03]} 13. Re1 {[%clk 00:18:29]}
{[%emt 00:00:28]} O-O {[%clk 00:19:08]} {[%emt 00:00:19]} 14. Nf1 {[%clk
00:17:12]} {[%emt 00:01:23]} b5 {[%clk 00:18:47]} {[%emt 00:00:26]} 15. axb5
{[%clk 00:16:26]} {[%emt 00:00:51]} axb5 {[%clk 00:18:50]} {[%emt 00:00:03]} 16.
Qb3 {[%clk 00:15:20]} Qb6 {[%clk 00:18:29]} {[%emt 00:01:36]} 17. Ne5 {[%clk
00:14:48]} Qb7 {[%clk 00:17:33]} {[%emt 00:01:38]} 18. Nxc6 {[%clk 00:13:27]}
Qxc6 {[%clk 00:17:33]} {[%emt 00:01:32]} 19. Ne3 {[%clk 00:13:21]} Qb7 {[%clk
00:16:28]} {[%emt 00:01:21]} 20. Nc2 {[%clk 00:12:16]} Rfb8 {[%clk 00:15:56]}
{[%emt 00:01:46]} 21. Nb4 {[%clk 00:11:40]} Ra4 {[%clk 00:15:02]} {[%emt
00:01:41]} 22. Nc6 {[%clk 00:10:37]} Rxa1 {[%clk 00:14:11]} {[%emt 00:02:04]}
23. Nxe7+ {[%clk 00:10:36]} Qxe7 {[%clk 00:14:13]} {[%emt 00:00:08]} 24. Rxa1
{[%clk 00:10:39]} Qb7 {[%clk 00:14:06]} {[%emt 00:00:14]} 25. Bf4 {[%clk
00:09:46]} Rc8 {[%clk 00:13:05]} {[%emt 00:02:04]} 26. Ra5 {[%emt 00:01:41]} b4
{[%clk 00:12:04]} 27. cxb4 {[%clk 00:08:55]} {[%emt 00:00:26]} Rc4 {[%clk
00:10:28]} {[%emt 00:01:41]} 28. b5 {[%clk 00:08:01]} {[%emt 00:01:00]} Nd7
{[%clk 00:08:39]} {[%emt 00:01:53]} 29. Be3 {[%clk 00:06:11]} {[%emt 00:01:55]}
Nf6 {[%clk 00:04:45]} {[%emt 00:03:59]} 30. Qa3 {[%clk 00:05:01]} {[%emt
00:01:15]} Ne4 {[%clk 00:01:42]} {[%emt 00:03:08]} 31. Ra8+ {[%clk 00:03:26]}
{[%emt 00:01:40]} Kh7 {[%clk 00:01:29]} {[%emt 00:00:18]} 32. Qf8 {[%clk
00:03:13]} {[%emt 00:00:18]} g5 {[%clk 00:01:12]} {[%emt 00:00:22]} 33. g4
{[%clk 00:02:49]} {[%emt 00:00:29]} Kg6 {[%clk 00:00:13]} {[%emt 00:01:04]} 34.
Rb8 {[%clk 00:02:07]} {[%emt 00:00:47]} Qc7 {[%clk 00:00:07]} {[%emt 00:00:11]}
35. b6 {[%clk 00:01:36]} {[%emt 00:00:37]} Qd7 {[%clk 00:00:07]} {[%emt
00:00:04]} 36. b7 {[%clk 00:01:09]} {[%emt 00:00:33]} Rc2 {[%clk 00:00:06]}
{[%emt 00:00:06]} 37. Qc8 {[%clk 00:00:52]} {[%emt 00:00:22]} 1-0



[ePGN "0.1;DGT LiveChess/2.2.6"]

[Event "MČR juniorů a juniorek v rapid šachu 2024"]
[Site "Hotel Fit Fun, Harrachov, Czech Republic"]
[Date "2024.09.22"]
[Round "7.16"]
[White "Hrazdira Matyas Josef"]
[Black "Ret Adam Josef"]
[Result "0-1"]
[TimeControl "20+5"]
[WhiteFideId "23732954"]
[BlackFideId "384240"]
[WhiteElo "1786"]
[BlackElo "2038"]

1. e4 {[%clk 00:20:06]} {[%emt 00:00:03]} c5 {[%clk 00:20:09]} {[%emt
00:00:02]} 2. Nf3 {[%clk 00:20:06]} {[%emt 00:00:04]} Nc6 {[%clk 00:20:14]} 3.
d4 {[%clk 00:20:10]} cxd4 {[%clk 00:20:18]} {[%emt 00:00:03]} 4. Nxd4 {[%clk
00:20:14]} {[%emt 00:00:01]} Nf6 {[%clk 00:20:22]} 5. Nc3 {[%clk 00:20:17]}
{[%emt 00:00:02]} e5 {[%clk 00:20:26]} 6. Ndb5 {[%clk 00:20:19]} {[%emt
00:00:03]} d6 {[%clk 00:20:30]} 7. Nd5 {[%clk 00:20:23]} {[%emt 00:00:02]} Nxd5
{[%clk 00:20:31]} {[%emt 00:00:04]} 8. exd5 {[%clk 00:20:26]} {[%emt 00:00:02]}
Nb8 {[%clk 00:20:35]} 9. c4 {[%clk 00:20:30]} {[%emt 00:00:02]} Be7 {[%clk
00:20:38]} {[%emt 00:00:01]} 10. Bd3 {[%clk 00:19:58]} {[%emt 00:00:37]} a6
{[%clk 00:20:39]} {[%emt 00:00:04]} 11. Nc3 {[%clk 00:20:02]} O-O {[%clk
00:20:36]} {[%emt 00:00:07]} 12. Be3 {[%clk 00:17:22]} {[%emt 00:02:45]} f5
{[%clk 00:20:40]} {[%emt 00:00:02]} 13. f3 {[%clk 00:17:04]} {[%emt 00:00:23]}
Bg5 {[%clk 00:20:43]} {[%emt 00:00:02]} 14. Qd2 {[%clk 00:16:57]} {[%emt
00:00:12]} Bxe3 {[%clk 00:20:38]} {[%emt 00:00:10]} 15. Qxe3 {[%clk 00:17:00]}
{[%emt 00:00:02]} Nd7 {[%clk 00:20:41]} {[%emt 00:00:02]} 16. a3 {[%clk
00:15:17]} {[%emt 00:01:49]} Nc5 {[%clk 00:20:05]} {[%emt 00:00:40]} 17. b4
{[%clk 00:12:08]} {[%emt 00:03:14]} Nxd3+ {[%clk 00:20:08]} {[%emt 00:00:02]}
18. Qxd3 {[%clk 00:12:12]} {[%emt 00:00:01]} a5 {[%clk 00:20:12]} 19. Rb1
{[%clk 00:10:56]} {[%emt 00:01:21]} axb4 {[%clk 00:20:16]} 20. axb4 {[%clk
00:11:00]} {[%emt 00:00:01]} e4 {[%clk 00:19:09]} {[%emt 00:01:12]} 21. fxe4
{[%clk 00:07:55]} {[%emt 00:03:10]} fxe4 {[%clk 00:19:13]} 22. Qe3 {[%clk
00:05:47]} {[%emt 00:02:13]} Qh4+ {[%clk 00:17:40]} {[%emt 00:01:38]} 23. g3
{[%clk 00:04:56]} {[%emt 00:00:56]} Qh5 {[%clk 00:17:29]} {[%emt 00:00:16]} 24.
Ne2 {[%clk 00:04:15]} {[%emt 00:00:46]} Rf3 {[%clk 00:16:56]} {[%emt 00:00:38]}
25. Qd2 {[%clk 00:02:54]} {[%emt 00:01:26]} Raa3 {[%clk 00:16:39]} {[%emt
00:00:23]} 26. Nf4 {[%clk 00:02:23]} {[%emt 00:00:35]} Rae3+ {[%clk 00:16:33]}
{[%emt 00:00:12]} 27. Ne2 {[%clk 00:01:55]} {[%emt 00:00:33]} Qh3 {[%clk
00:15:17]} {[%emt 00:01:20]} 28. Kd1 {[%clk 00:01:36]} {[%emt 00:00:25]} Rd3
{[%clk 00:15:15]} {[%emt 00:00:07]} 0-1



[ePGN "0.1;DGT LiveChess/2.2.6"]